fUST/lending_fUST_20250211
["ID","MTS","AMOUNT","RATE_DAILY","PERIOD"]
[352642339,1739214658042,-501.89730355,0.00011506,2]
[352642340,1739214658051,-500.0,0.00011506,2]
[352642341,1739214658061,-1376.68,0.00011506,2]
[352642342,1739214658070,-500.0,0.00011506,2]
[352642343,1739214658080,-585.72,0.00011506,2]
[352642344,1739214658090,-6372.84,0.00011506,2]
[352642345,1739214658099,-500.0,0.00011506,2]
[352642346,1739214658109,-500.0,0.00011506,2]
[352642347,1739214658118,-500.0,0.00011506,2]
[352642348,1739214658127,-500.0,0.00011506,2]
[352642349,1739214658136,-500.0,0.00011506,2]
[352642350,1739214658146,-822.18,0.00011506,2]
[352642351,1739214658155,-500.0,0.00011506,2]
[352642352,1739214658165,-500.0,0.00011506,2]
[352642353,1739214658174,-500.0,0.00011506,2]
[352642354,1739214658183,-500.0,0.00011506,2]
[352642355,1739214658192,-500.0,0.00011506,2]
[352642356,1739214658201,-500.0,0.00011506,2]
[352642357,1739214658211,-500.0,0.00011506,2]
[352642358,1739214658221,-500.0,0.00011506,2]
[352642359,1739214658230,-500.0,0.00011506,2]
[352642360,1739214658239,-500.0,0.00011506,2]
[352642361,1739214658249,-500.0,0.00011506,2]
[352642362,1739214658258,-229.20618133,0.00011506,2]
[352642363,1739214658267,-500.0,0.00011506,2]
[352642364,1739214658276,-500.0,0.00011506,2]
[352642365,1739214658286,-500.0,0.00011506,2]
[352642366,1739214658296,-500.0,0.00011506,2]
[352642367,1739214658305,-504.35433761,0.00011506,2]
[352642368,1739214658315,-500.0,0.00011506,2]
[352642369,1739214658324,-500.0,0.00011506,2]
[352642370,1739214658334,-500.0,0.00011643,2]
[352642371,1739214658343,-500.0,0.00011643,2]
[352642372,1739214658352,-500.0,0.00011643,2]
[352642373,1739214658362,-500.0,0.00011643,2]
[352642374,1739214658371,-500.0,0.00011643,2]
[352642375,1739214658380,-845.93,0.00011643,2]
[352642376,1739214658389,-500.0,0.00011643,2]
[352642377,1739214658399,-500.0,0.00011643,2]
[352642378,1739214658408,-844.71,0.00011643,2]
[352642379,1739214658417,-585.48302124,0.00011643,2]
[352642380,1739214658426,-500.0,0.00011643,2]
[352642381,1739214658436,-500.0,0.00011643,2]
[352642382,1739214658445,-500.0,0.00011643,2]
[352642383,1739214658454,-195.84925615,0.00011643,2]
[352642384,1739214658463,-557.84,0.00011643,2]
[352642385,1739214658472,-500.0,0.00011643,2]
[352642386,1739214658483,-500.0,0.00011643,2]
[352642387,1739214658492,-500.0,0.00011643,2]
[352642388,1739214658501,-500.0,0.00011643,2]
[352642389,1739214658510,-500.0,0.00011643,2]
[352642390,1739214658519,-500.0,0.00011643,2]
[352642391,1739214658529,-500.0,0.00011643,2]
[352642392,1739214658538,-500.0,0.00011643,2]
[352642393,1739214658548,-500.0,0.00011643,2]
[352642394,1739214658557,-500.0,0.00011643,2]
[352642395,1739214658566,-766.18,0.00011643,2]
[352642396,1739214658575,-500.0,0.00011643,2]
[352642397,1739214658593,-500.0,0.00011643,2]
[352642398,1739214658602,-500.0,0.00011643,2]
[352642399,1739214658611,-500.0,0.00011643,2]
[352642400,1739214658624,-500.0,0.00011643,2]
[352642401,1739214658633,-500.0,0.00011643,2]
[352642402,1739214658642,-613.25548455,0.00011643,2]
[352642403,1739214658652,-500.0,0.00011643,2]
[352642404,1739214658661,-603.83,0.00011643,2]
[352642405,1739214658670,-500.0,0.00011643,2]
[352642406,1739214658679,-500.0,0.00011643,2]
[352642407,1739214658688,-500.0,0.00011643,2]
[352642408,1739214658698,-500.0,0.00011643,2]
[352642409,1739214658707,-500.0,0.00011643,2]
[352642410,1739214658716,-500.0,0.00011643,2]
[352642411,1739214658725,-2146.46,0.00011643,2]
[352642412,1739214658734,-500.0,0.00011643,2]
[352642413,1739214658744,-1203.92,0.00011643,2]
[352642414,1739214658754,-2473.05,0.00011643,2]
[352642415,1739214658763,-500.0,0.00011643,2]
[352642416,1739214658772,-500.0,0.00011643,2]
[352642417,1739214658781,-500.0,0.00011643,2]
[352642418,1739214658792,-587.58,0.00011643,2]
[352642419,1739214658801,-732.42,0.00011643,2]
[352642420,1739214658810,-500.0,0.00011643,2]
[352642421,1739214658819,-500.0,0.00011643,2]
[352642422,1739214658831,-486.88781909,0.00011643,2]
[352642423,1739214658841,-500.0,0.00011643,2]
[352642424,1739214658850,-159.38573129,0.00011643,2]
[352642425,1739214659317,-150.0,0.00010958,2]
[352642426,1739214659327,-500.0,0.00010958,2]
[352642427,1739214659335,-500.0,0.00010958,2]
[352642428,1739214659345,-1091.23,0.00010958,2]
[352642429,1739214659355,-500.0,0.00011095,2]
[352642430,1739214659364,-500.0,0.00011095,2]
[352642431,1739214659374,-500.0,0.00011095,2]
[352642432,1739214659383,-1091.23,0.00011095,2]
[352642433,1739214659394,-500.0,0.00011232,2]
[352642434,1739214659403,-500.0,0.00011232,2]
[352642435,1739214659412,-892.59735,0.00011232,2]
[352642436,1739214659424,-198.63265,0.00011232,2]
[352642437,1739214659438,-500.0,0.00011369,2]
[352642438,1739214659447,-500.0,0.00011369,2]
[352642439,1739214659456,-418.28426871,0.00011643,2]
[352642440,1739214659465,-500.0,0.00011643,2]
[352642441,1739214659475,-1990.88,0.00011643,2]
[352642442,1739214659484,-500.0,0.00011643,2]
[352642443,1739214659493,-500.0,0.00011643,2]
[352642444,1739214659502,-8647.15,0.00011643,2]
[352642445,1739214659511,-500.0,0.00011643,2]
[352642446,1739214659521,-3024.25,0.00011643,2]
[352642447,1739214659530,-500.0,0.00011643,2]
[352642448,1739214659539,-500.0,0.00011643,2]
[352642449,1739214659549,-1155.49,0.00011643,2]
[352642450,1739214659558,-500.0,0.00011643,2]
[352642451,1739214659568,-500.0,0.00011643,2]
[352642452,1739214659578,-500.0,0.00011643,2]
[352642453,1739214659587,-584.13,0.00011643,2]
[352642454,1739214659596,-500.0,0.00011643,2]
[352642455,1739214659605,-500.0,0.00011643,2]
[352642456,1739214659614,-500.0,0.00011643,2]
[352642457,1739214659623,-491.91,0.00011643,2]
[352642458,1739214659632,-500.0,0.00011643,2]
[352642459,1739214659642,-500.0,0.00011643,2]
[352642460,1739214659652,-523.22,0.00011643,2]
[352642461,1739214659661,-823.42,0.00011643,2]
[352642462,1739214659671,-2399.86,0.00011643,2]
[352642463,1739214659680,-500.0,0.00011643,2]
[352642464,1739214659690,-500.0,0.00011643,2]
[352642465,1739214659699,-500.0,0.00011643,2]
[352642466,1739214659709,-500.0,0.00011643,2]
[352642467,1739214659718,-1305.43,0.00011643,2]
[352642468,1739214659728,-500.0,0.00011643,2]
[352642469,1739214659738,-500.0,0.00011643,2]
[352642470,1739214659747,-3723.37,0.00011643,2]
[352642471,1739214659757,-500.0,0.00011643,2]
[352642472,1739214659768,-500.0,0.00011643,2]
[352642473,1739214659777,-877.79,0.00011643,2]
[352642474,1739214659787,-15092.27221506,0.00011643,2]
[352642475,1739214659800,-262.248948,0.00011643,2]
[352642476,1739214659812,-9657.62883694,0.00011643,2]
[352642477,1739214659822,-986.22,0.00011643,2]
[352642478,1739214659832,-500.0,0.00011643,2]
[352642479,1739214659843,-500.0,0.00011643,2]
[352642480,1739214659852,-1383.8,0.00011643,2]
[352642481,1739214659862,-500.0,0.00011643,2]
[352642482,1739214659871,-500.0,0.00011643,2]
[352642483,1739214659882,-500.0,0.00011643,2]
[352642484,1739214659891,-500.0,0.00011643,2]
[352642485,1739214659901,-508.66649537,0.00011643,2]
[352642486,1739214659912,-652.7,0.00011643,2]
[352642487,1739214659921,-942.28,0.00011643,2]
[352642488,1739214659931,-500.0,0.00011643,2]
[352642489,1739214659940,-159.99052167,0.00011643,2]
[352642490,1739214659949,-550.29863966,0.00011643,2]
[352642491,1739214659959,-1495.14,0.00011643,2]
[352642492,1739214659968,-500.0,0.00011643,2]
[352642493,1739214659978,-500.0,0.00011643,2]
[352642494,1739214659987,-500.0,0.00011643,2]
[352642495,1739214659997,-500.0,0.00011643,2]
[352642496,1739214660005,-500.0,0.00011643,2]
[352642497,1739214660015,-500.0,0.00011643,2]
[352642498,1739214660025,-12786.63,0.00011643,2]
[352642499,1739214660035,-500.0,0.00011643,2]
[352642500,1739214660046,-151.0,0.00011643,2]
[352642501,1739214660057,-151.0,0.00011643,2]
[352642502,1739214660067,-500.0,0.00011643,2]
[352642503,1739214660079,-151.0,0.00011643,2]
[352642504,1739214660090,-500.0,0.00011643,2]
[352642505,1739214660100,-227.689505,0.00011643,2]
[352642506,1739214660111,-227.689505,0.00011643,2]
[352642507,1739214660121,-500.0,0.00011643,2]
[352642508,1739214660131,-1209.54,0.00011643,2]
[352642509,1739214660142,-500.0,0.00011643,2]
[352642510,1739214660152,-2531.4,0.00011643,2]
[352642511,1739214660162,-500.0,0.00011643,2]
[352642512,1739214660173,-576.35398343,0.00011643,2]
[352642513,1739214660184,-500.0,0.00011643,2]
[352642514,1739214660195,-151.0,0.00011643,2]
[352642515,1739214660205,-151.0,0.00011643,2]
[352642516,1739214660214,-500.0,0.00011643,2]
[352642517,1739214660225,-500.0,0.00011643,2]
[352642518,1739214660236,-2502.01,0.00011643,2]
[352642519,1739214660246,-500.0,0.00011643,2]
[352642520,1739214660256,-500.0,0.00011643,2]
[352642521,1739214660267,-500.0,0.00011643,2]
[352642522,1739214660278,-500.0,0.00011643,2]
[352642523,1739214660289,-1073.84,0.00011643,2]
[352642524,1739214660300,-500.0,0.00011643,2]
[352642525,1739214660310,-151.0,0.00011643,2]
[352642526,1739214660320,-500.0,0.00011643,2]
[352642527,1739214660330,-1148.4,0.00011643,2]
[352642528,1739214660405,-16.55216074,0.00011643,2]
[352642529,1739214660492,-1091.23,0.00011369,2]
[352642530,1739214660502,-500.0,0.00011506,2]
[352642531,1739214660512,-1091.23,0.00011506,2]
[352642532,1739214660522,-483.44783926,0.00011643,2]
[352642533,1739214660532,-1376.68,0.00011643,2]
[352642534,1739214660543,-500.0,0.00011643,2]
[352642535,1739214660553,-585.72,0.00011643,2]
[352642536,1739214660563,-6372.84,0.00011643,2]
[352642537,1739214660572,-500.0,0.00011643,2]
[352642538,1739214660582,-405.451468,0.00011643,2]
[352642539,1739214660592,-500.0,0.00011643,2]
[352642540,1739214660602,-500.0,0.00011643,2]
[352642541,1739214660612,-405.451468,0.00011643,2]
[352642542,1739214660621,-500.0,0.00011643,2]
[352642543,1739214660631,-822.18,0.00011643,2]
[352642544,1739214660640,-500.0,0.00011643,2]
[352642545,1739214660650,-500.0,0.00011643,2]
[352642546,1739214660660,-500.0,0.00011643,2]
[352642547,1739214660669,-151.0,0.00011643,2]
[352642548,1739214660679,-500.0,0.00011643,2]
[352642549,1739214660688,-500.0,0.00011643,2]
[352642550,1739214660698,-314.11658252,0.00011643,2]
[352642551,1739214660708,-500.0,0.00011643,2]
[352642552,1739214660717,-500.0,0.00011643,2]
[352642553,1739214660727,-500.0,0.00011643,2]
[352642554,1739214660736,-500.0,0.00011643,2]
[352642555,1739214660746,-294.42050055,0.00011643,2]
[352642556,1739214660755,-500.0,0.00011643,2]
[352642557,1739214660765,-500.0,0.00011643,2]
[352642558,1739214660775,-500.0,0.00011643,2]
[352642559,1739214660784,-500.0,0.00011643,2]
[352642560,1739214660794,-500.0,0.00011643,2]
[352642561,1739214660804,-500.0,0.00011643,2]
[352642562,1739214660813,-1091.23,0.00011643,2]
[352642563,1739214660823,-500.0,0.00011724,2]
[352642564,1739214660835,-500.0,0.00011724,2]
[352642565,1739214660845,-500.0,0.00011724,2]
[352642566,1739214660855,-160.68360129,0.00011724,2]
[352642567,1739214660865,-260.0811714,0.00011724,2]
[352642568,1739214660875,-161.97416736,0.00011733,2]
[352642569,1739214660884,-500.0,0.00011733,2]
[352642570,1739214660894,-500.0,0.00011735,2]
[352642571,1739214660904,-500.0,0.00011735,2]
[352642572,1739214660916,-163.67726063,0.00011735,2]
[352642573,1739214660926,-506.56848115,0.00011736,2]
[352642574,1739214660936,-500.40279845,0.00011744,2]
[352642575,1739214660946,-500.0,0.00011744,2]
[352642576,1739214660956,-500.0,0.00011744,2]
[352642577,1739214660966,-500.0,0.00011765,2]
[352642578,1739214660975,-267.18147696,0.00011765,2]
[352642579,1739214660985,-500.0,0.00011765,2]
[352642580,1739214660995,-500.0,0.00011765,2]
[352642581,1739214661005,-500.0,0.00011765,2]
[352642582,1739214661015,-500.0,0.00011765,2]
[352642583,1739214661026,-500.0,0.00011766,2]
[352642584,1739214661035,-501.62037964,0.00011766,2]
[352642585,1739214661045,-151.0,0.00011766,2]
[352642586,1739214661055,-151.0,0.00011766,2]
[352642587,1739214661065,-151.0,0.00011766,2]
[352642588,1739214661075,-500.0,0.0001178,2]
[352642589,1739214661084,-526.45002327,0.0001178,2]
[352642590,1739214661095,-500.0,0.0001178,2]
[352642591,1739214661105,-845.93,0.0001178,2]
[352642592,1739214661114,-500.0,0.0001178,2]
[352642593,1739214661124,-500.0,0.0001178,2]
[352642594,1739214661134,-844.71,0.0001178,2]
[352642595,1739214661143,-500.0,0.0001178,2]
[352642596,1739214661153,-500.0,0.0001178,2]
[352642597,1739214661162,-500.0,0.0001178,2]
[352642598,1739214661173,-557.84,0.0001178,2]
[352642599,1739214661183,-500.0,0.0001178,2]
[352642600,1739214661193,-500.0,0.0001178,2]
[352642601,1739214661203,-500.0,0.0001178,2]
[352642602,1739214661212,-500.0,0.0001178,2]
[352642603,1739214661222,-500.0,0.0001178,2]
[352642604,1739214661232,-500.0,0.0001178,2]
[352642605,1739214661242,-766.18,0.0001178,2]
[352642606,1739214661251,-531.66845479,0.0001178,2]
[352642607,1739214661261,-500.0,0.0001178,2]
[352642608,1739214661271,-500.0,0.0001178,2]
[352642609,1739214661281,-500.0,0.0001178,2]
[352642610,1739214661291,-383.35752962,0.0001178,2]
[352642611,1739214661302,-603.83,0.0001178,2]
[352642612,1739214661311,-500.0,0.0001178,2]
[352642613,1739214661321,-340.17337902,0.0001178,2]
[352642614,1739214661331,-500.0,0.0001178,2]
[352642615,1739214661340,-500.0,0.0001178,2]
[352642616,1739214661350,-588.98597003,0.0001178,2]
[352642617,1739214661360,-500.0,0.0001178,2]
[352642618,1739214661370,-1203.92,0.0001178,2]
[352642619,1739214661380,-2473.05,0.0001178,2]
[352642620,1739214661390,-500.0,0.0001178,2]
[352642621,1739214661400,-500.0,0.0001178,2]
[352642622,1739214661410,-198.58271623,0.0001178,2]
[352642623,1739214661420,-587.58,0.0001178,2]
[352642624,1739214661429,-732.42,0.0001178,2]
[352642625,1739214661439,-500.0,0.0001178,2]
[352642626,1739214661448,-500.0,0.0001178,2]
[352642627,1739214661457,-500.0,0.0001178,2]
[352642628,1739214661467,-577.67,0.0001178,2]
[352642629,1739214661476,-593.37,0.0001178,2]
[352642630,1739214661487,-1990.88,0.0001178,2]
[352642631,1739214661496,-500.0,0.0001178,2]
[352642632,1739214661506,-500.0,0.0001178,2]
[352642633,1739214661516,-8647.15,0.0001178,2]
[352642634,1739214661526,-500.0,0.0001178,2]
[352642635,1739214661535,-3024.25,0.0001178,2]
[352642636,1739214661611,-500.0,0.0001178,2]
[352642637,1739214661621,-500.0,0.0001178,2]
[352642638,1739214661631,-1155.49,0.0001178,2]
[352642639,1739214661641,-500.0,0.0001178,2]
[352642640,1739214661651,-500.0,0.0001178,2]
[352642641,1739214661661,-500.0,0.0001178,2]
[352642642,1739214661670,-584.13,0.0001178,2]
[352642643,1739214661680,-500.0,0.0001178,2]
[352642644,1739214661689,-500.0,0.0001178,2]
[352642645,1739214661699,-500.0,0.0001178,2]
[352642646,1739214661708,-500.0,0.0001178,2]
[352642647,1739214661718,-523.22,0.0001178,2]
[352642648,1739214661728,-823.42,0.0001178,2]
[352642649,1739214661737,-2399.86,0.0001178,2]
[352642650,1739214661747,-500.0,0.0001178,2]
[352642651,1739214661757,-511.53,0.0001178,2]
[352642652,1739214661767,-500.0,0.0001178,2]
[352642653,1739214661778,-1305.43,0.0001178,2]
[352642654,1739214661789,-500.0,0.0001178,2]
[352642655,1739214661800,-500.0,0.0001178,2]
[352642656,1739214661810,-3723.37,0.0001178,2]
[352642657,1739214661820,-500.0,0.0001178,2]
[352642658,1739214661833,-500.0,0.0001178,2]
[352642659,1739214661846,-877.79,0.0001178,2]
[352642660,1739214661856,-25012.15,0.0001178,2]
[352642661,1739214661867,-986.22,0.0001178,2]
[352642662,1739214661877,-500.0,0.0001178,2]
[352642663,1739214661887,-1383.8,0.0001178,2]
[352642664,1739214661898,-500.0,0.0001178,2]
[352642665,1739214661909,-500.0,0.0001178,2]
[352642666,1739214661920,-500.0,0.0001178,2]
[352642667,1739214661929,-500.0,0.0001178,2]
[352642668,1739214661940,-652.7,0.0001178,2]
[352642669,1739214661950,-942.28,0.0001178,2]
[352642670,1739214661960,-500.0,0.0001178,2]
[352642671,1739214661971,-1495.14,0.0001178,2]
[352642672,1739214661981,-500.0,0.0001178,2]
[352642673,1739214661991,-544.55776115,0.0001178,2]
[352642674,1739214662000,-500.0,0.0001178,2]
[352642675,1739214662010,-500.0,0.0001178,2]
[352642676,1739214662019,-500.0,0.0001178,2]
[352642677,1739214662028,-500.0,0.0001178,2]
[352642678,1739214662038,-12786.63,0.0001178,2]
[352642679,1739214662048,-151.0,0.0001178,2]
[352642680,1739214662058,-500.0,0.0001178,2]
[352642681,1739214662067,-151.0,0.0001178,2]
[352642682,1739214662076,-500.0,0.0001178,2]
[352642683,1739214662085,-500.0,0.0001178,2]
[352642684,1739214662094,-500.0,0.0001178,2]
[352642685,1739214662103,-1209.54,0.0001178,2]
[352642686,1739214662113,-500.0,0.0001178,2]
[352642687,1739214662123,-2531.4,0.0001178,2]
[352642688,1739214662132,-500.0,0.0001178,2]
[352642689,1739214662143,-500.0,0.0001178,2]
[352642690,1739214662153,-500.0,0.0001178,2]
[352642691,1739214662163,-503.22223384,0.0001178,2]
[352642692,1739214662173,-2502.01,0.0001178,2]
[352642693,1739214662183,-541.05493765,0.0001178,2]
[352642694,1739214662192,-500.0,0.0001178,2]
[352642695,1739214662201,-500.0,0.0001178,2]
[352642696,1739214662211,-500.0,0.0001178,2]
[352642697,1739214662221,-1073.84,0.0001178,2]
[352642698,1739214662230,-500.0,0.0001178,2]
[352642699,1739214662240,-1148.4,0.0001178,2]
[352642700,1739214662250,-500.0,0.0001178,2]
[352642701,1739214662261,-1376.68,0.0001178,2]
[352642702,1739214662271,-585.72,0.0001178,2]
[352642703,1739214662281,-6372.84,0.0001178,2]
[352642704,1739214662291,-500.0,0.0001178,2]
[352642705,1739214662301,-500.0,0.0001178,2]
[352642706,1739214662311,-500.0,0.0001178,2]
[352642707,1739214662320,-822.18,0.0001178,2]
[352642708,1739214662330,-500.0,0.0001178,2]
[352642709,1739214662339,-503.93,0.0001178,2]
[352642710,1739214662348,-644.45954468,0.0001178,2]
[352642711,1739214662358,-500.0,0.0001178,2]
[352642712,1739214662368,-291.320004,0.0001178,2]
[352642713,1739214662378,-500.0,0.0001178,2]
[352642714,1739214662388,-500.0,0.0001178,2]
[352642715,1739214662398,-500.0,0.0001178,2]
[352642716,1739214662407,-500.0,0.0001178,2]
[352642717,1739214662417,-507.20464253,0.0001178,2]
[352642718,1739214662426,-500.0,0.0001178,2]
[352642719,1739214662436,-500.0,0.0001178,2]
[352642720,1739214662445,-500.0,0.0001178,2]
[352642721,1739214662455,-420.0,0.00011908,2]
[352642722,1739214662465,-500.0,0.00011917,2]
[352642723,1739214662475,-500.0,0.00011917,2]
[352642724,1739214662484,-845.93,0.00011917,2]
[352642725,1739214662493,-500.0,0.00011917,2]
[352642726,1739214662502,-500.0,0.00011917,2]
[352642727,1739214662511,-844.71,0.00011917,2]
[352642728,1739214662521,-500.0,0.00011917,2]
[352642729,1739214662531,-500.0,0.00011917,2]
[352642730,1739214662542,-500.0,0.00011917,2]
[352642731,1739214662552,-557.84,0.00011917,2]
[352642732,1739214662562,-500.0,0.00011917,2]
[352642733,1739214662572,-500.0,0.00011917,2]
[352642734,1739214662582,-500.0,0.00011917,2]
[352642735,1739214662592,-73.92662919,0.00011917,2]
[352642736,1739214662607,-426.07337081,0.00011917,2]
[352642737,1739214662616,-500.0,0.00011917,2]
[352642738,1739214662627,-766.18,0.00011917,2]
[352642739,1739214662636,-500.0,0.00011917,2]
[352642740,1739214662646,-595.23442031,0.00011917,2]
[352642741,1739214662655,-446.13158782,0.00011917,2]
[352642742,1739214662747,-4170.46598179,0.00010848,2]
[352642743,1739214703854,2413.71789596,9.992e-05,2]
[352642806,1739215642120,-992.69233245,8.43e-05,2]
[352642807,1739215642250,-3748.96383876,8.515e-05,2]
[352642808,1739215642273,-3256.4286342,9.137e-05,2]
[352642809,1739215642297,-282.80207798,9.178e-05,2]
[352642814,1739215748091,-106.08030082,9.178e-05,2]
[352642815,1739215748112,-162.13356209,9.892e-05,2]
[352642816,1739215748133,-300.0,9.928e-05,2]
[352642817,1739215748157,-7353.27313709,9.929e-05,2]
[352642821,1739215758078,-3430.0,9.929e-05,2]
[352642822,1739215760137,-14116.72686291,9.929e-05,2]
[352642823,1739215760168,-136.40915584,9.939e-05,2]
[352642872,1739215832317,-250.0,9.778e-05,2]
[352642874,1739215832327,-25.66347346,9.939e-05,2]
[352642876,1739215832338,-0.12753874,9.992e-05,2]
[352642878,1739215832347,-13340.12911442,0.00010419,2]
[352642879,1739215832357,-274.0,0.000106,2]
[352642880,1739215832366,-4075.56627689,0.00010638,2]
[352642881,1739215832375,-1353.88824662,0.0001064,2]
[352642882,1739215832385,-162.0,0.000107,2]
[352642883,1739215832394,-7438.69753278,0.00010832,2]
[352642884,1739215832403,-600.34659916,0.000109,2]
[352642885,1739215832413,-500.0,0.00010957,2]
[352642886,1739215832422,-211.83234199,0.00010957,2]
[352642887,1739215832431,-500.0,0.00010957,2]
[352642888,1739215832441,-500.0,0.00010957,2]
[352642889,1739215832451,-500.0,0.00010957,2]
[352642890,1739215832460,-500.0,0.00010957,2]
[352642891,1739215832469,-500.0,0.00010957,2]
[352642897,1739215832578,-500.0,0.00010957,2]
[352642898,1739215832588,-465.50699034,0.00010957,2]
[352642899,1739215832597,-500.0,0.00010957,2]
[352642900,1739215832606,-500.0,0.00010957,2]
[352642901,1739215832615,-300.09200112,0.00010957,2]
[352642902,1739215832625,-500.0,0.00010957,2]
[352642903,1739215832634,-500.0,0.00010957,2]
[352642904,1739215832644,-177.80864938,0.00010957,2]
[352642905,1739215832653,-500.0,0.00010957,2]
[352642906,1739215832662,-500.0,0.00010957,2]
[352642907,1739215832671,-606.47299823,0.00010957,2]
[352642908,1739215832681,-500.0,0.00010958,2]
[352642909,1739215832690,-500.63120117,0.00010958,2]
[352642910,1739215832699,-500.0,0.00010958,2]
[352642911,1739215832709,-501.2785299,0.00010958,2]
[352642912,1739215832718,-639.52588674,0.00010958,2]
[352642913,1739215832727,-542.22037632,0.00010958,2]
[352642914,1739215832737,-500.0,0.00010958,2]
[352642915,1739215832746,-500.0,0.00010958,2]
[352642916,1739215832756,-500.97537109,0.00010958,2]
[352642917,1739215832765,-500.0,0.00010958,2]
[352642918,1739215832775,-500.0,0.00010958,2]
[352642919,1739215832784,-501.16755942,0.00010958,2]
[352642920,1739215832794,-235.66797494,0.00010958,2]
[352642921,1739215832803,-500.0,0.00010958,2]
[352642922,1739215832813,-500.0,0.00010958,2]
[352642923,1739215832823,-615.77630108,0.00010958,2]
[352642924,1739215832832,-500.0,0.00010958,2]
[352642925,1739215832842,-500.0,0.00010958,2]
[352642926,1739215832851,-500.0,0.00010958,2]
[352642927,1739215832861,-500.0,0.00010958,2]
[352642928,1739215832870,-500.0,0.00010958,2]
[352642929,1739215832880,-500.0,0.00010958,2]
[352642930,1739215832889,-500.0,0.00010958,2]
[352642931,1739215832899,-500.0,0.00010958,2]
[352642932,1739215832908,-500.0,0.00010958,2]
[352642933,1739215832918,-314.68494082,0.00010958,2]
[352642934,1739215832927,-500.0,0.00010958,2]
[352642935,1739215832937,-500.0,0.00010958,2]
[352642936,1739215832946,-500.0,0.00010958,2]
[352642937,1739215832956,-500.0,0.00010958,2]
[352642938,1739215832965,-502.59049241,0.00010958,2]
[352642939,1739215832974,-500.64731202,0.00010958,2]
[352642940,1739215832983,-500.0,0.00010958,2]
[352642941,1739215832993,-500.0,0.00010958,2]
[352642942,1739215833002,-500.0,0.00010958,2]
[352642943,1739215833012,-500.0,0.00010958,2]
[352642944,1739215833021,-500.0,0.00010958,2]
[352642945,1739215833031,-500.0,0.00010958,2]
[352642946,1739215833042,-500.0,0.00010958,2]
[352642947,1739215833053,-500.0,0.00010958,2]
[352642948,1739215833063,-500.0,0.00010958,2]
[352642949,1739215833073,-500.0,0.00010958,2]
[352642950,1739215833083,-400.84424532,0.00010958,2]
[352642951,1739215833093,-531.31439289,0.00010958,2]
[352642952,1739215833103,-500.0,0.00010958,2]
[352642953,1739215833113,-500.0,0.00010958,2]
[352642954,1739215833123,-500.0,0.00010958,2]
[352642955,1739215833132,-500.0,0.00010958,2]
[352642956,1739215833142,-500.0,0.00010958,2]
[352642957,1739215833152,-500.0,0.00010958,2]
[352642958,1739215833165,-500.0,0.00010958,2]
[352642959,1739215833177,-515.43985974,0.00010958,2]
[352642960,1739215833187,-500.0,0.00010958,2]
[352642961,1739215833197,-500.0,0.00010958,2]
[352642962,1739215833208,-500.0,0.00010958,2]
[352642963,1739215833218,-500.0,0.00010958,2]